Cogmind - Beta 15 @@@ ROGUE MODE // 2025.07.01 @ 20:20:42 Player: McSaucyNugget Result: Destroyed by G-50 Soldier with Heavy Laser Performance ------------- Evolutions (5) 2500 Regions Visited (20) 4000 Robots Destroyed (168) 840 Value Destroyed (6014) 6014 Prototype IDs (29) 580 Alien Tech Used (0) 0 Bonus (2648) 2648 TOTAL SCORE: 16582 Bonus ------- Met Data Miner 300 Met Warlord at Base 500 MAIN.C Attacked Warlord 500 Warlord Defense Kills 1926 Friendly Fire -578 Cogmind --------- Core Integrity 0/1000 Matter 108/300 Energy 99/100 System Corruption 0% Temperature Cool (9) Movement Core (50) Location -5/Warlord Parts ------- > --- POWER (2) -------- (None) > --- PROPULSION (5) --- (None) > --- UTILITY (7) ------ (None) > --- WEAPON (3) ------- (None) > --- INVENTORY (5) ---- Advanced Heat Sink Advanced Terrain Scanner Makeshift Transmission Jammer Advanced Remote Force Field Vortex Shotgun (50) Peak State ------------ > --- POWER ------------ Vortex Chain Reactor > --- PROPULSION ------- Armored Treads Armored Treads Wheel Wheel Compact Wheel > --- UTILITY ---------- High-capacity Storage Unit Advanced Terrain Scan Processor Experimental Targeting Computer Makeshift Heavy Armor Plating Advanced Remote Force Field System Mapper > --- WEAPON ----------- Heavy Beamcaster KE Penetrator Magnetic Acceleration Cannon > --- INVENTORY -------- Neutrino Core Wheel Advanced Heat Sink Matter Compressor Experimental Sensor Array Advanced Terrain Scanner Makeshift Transmission Jammer Makeshift Light Armor Plating Medium Reactive Plating High-powered Tractor Beam Hacking Drone Bay Variable Charge Gun Vortex Shotgun Vortex Shotgun Gauss Rifle Heavy Machine Gun Gauss Cannon Rocket Array Vortex Lance [Rating: 96] Favorites ----------- Power Micro Nuclear Core Engine Light Ion Engine Power Core Micro Nuclear Core Reactor Vortex Chain Reactor Propulsion Armored Treads Treads Armored Treads Wheel Wheel Utility Hacking Suite Device Improved Heat Sink Storage High-capacity Storage Unit Processor Machine Analyzer Hackware Hacking Suite Protection Improved Medium Armor Plating Weapon Advanced Assault Cannon Energy Gun Gatling Laser Energy Cannon Phase Cannon Ballistic Gun Gauss Rifle Ballistic Cannon Advanced Assault Cannon Launcher Heavy Rocket Launcher Slashing Weapon Chainsword Piercing Weapon CR-A16's Pointy Stick Build | -11 -10 -9 -9 -9 -8 -8 -7 -7 -7 -7 -6 -6 -6 -6 -6 -5 -5 -5 -5 -5 ------- Run | Yrd Mat Mat Min Exi Min Mat Fac Low Low Zio Pro Fac Low Low Dat Pro Fac Upp Upp War Slots Evolved 10 | . . 2 . . . 2 2 . . . . 2 . . . . 2 . . . Power 1 | . . . . . . . . . . . . . . . . . 1 . . . Propulsion 3 | . . 1 . . . 1 1 . . . . . . . . . . . . . Utility 5 | . . 1 . . . 1 1 . . . . 1 . . . . 1 . . . Weapon 1 | . . . . . . . . . . . . 1 . . . . . . . . Parts Attached 133 | 10 3 17 7 . . 15 26 . . 4 . 9 1 1 . 3 16 2 5 14 Power 14 | 1 1 1 1 . . 2 2 . . . . . . . . . 5 . . 1 Engine 4 | 1 . . 1 . . 1 . . . . . . . . . . 1 . . . Core 9 | . 1 1 . . . 1 2 . . . . . . . . . 4 . . . Reactor 1 | . . . . . . . . . . . . . . . . . . . . 1 Propulsion 40 | 4 . 6 3 . . 6 7 . . 1 . 2 . 1 . . 5 . 2 3 Treads 19 | 2 . 1 1 . . 3 5 . . 1 . 2 . 1 . . 2 . 1 . Leg . | . . . . . . . . . . . . . . . . . . . . . Wheel 21 | 2 . 5 2 . . 3 2 . . . . . . . . . 3 . 1 3 Hover . | . . . . . . . . . . . . . . . . . . . . . Flight . | . . . . . . . . . . . . . . . . . . . . . Utility 44 | 2 2 5 1 . . 4 10 . . . . 6 1 . . 1 3 1 2 6 Device 18 | 1 . 2 1 . . 2 2 . . . . 2 1 . . . 2 . 1 4 Storage 4 | 1 2 . . . . . 1 . . . . . . . . . . . . . Processor 5 | . . 1 . . . . 1 . . . . 2 . . . . . . . 1 Hackware 5 | . . . . . . . 2 . . . . 1 . . . . 1 . . 1 Protection 12 | . . 2 . . . 2 4 . . . . 1 . . . 1 . 1 1 . Artifact . | . . . . . . . . . . . . . . . . . . . . . Weapon 35 | 3 . 5 2 . . 3 7 . . 3 . 1 . . . 2 3 1 1 4 Energy Gun 8 | . . 1 1 . . 1 1 . . . . . . . . . 1 . 1 2 Energy Cannon 2 | . . 1 . . . . . . . . . 1 . . . . . . . . Ballistic Gun 15 | 3 . 3 1 . . 1 1 . . 3 . . . . . . 2 . . 1 Ballistic Cannon 5 | . . . . . . 1 1 . . . . . . . . 2 . . . 1 Launcher 3 | . . . . . . . 3 . . . . . . . . . . . . . Special Weapon . | . . . . . . . . . . . . . . . . . . . . . Impact Weapon . | . . . . . . . . . . . . . . . . . . . . . Slashing Weapon 1 | . . . . . . . 1 . . . . . . . . . . . . . Piercing Weapon 1 | . . . . . . . . . . . . . . . . . . 1 . . Special Melee Weapon . | . . . . . . . . . . . . . . . . . . . . . Unidentified Prototypes 12 | . . 1 1 . . 2 1 . . . . . . . . . 1 . . 6 Parts Lost 53 | . 2 8 2 . . 4 5 . . . . . . . . 2 10 2 2 16 Power 6 | . . 1 1 . . 1 . . . . . . . . . . 2 . . 1 Propulsion 26 | . . 4 1 . . 2 3 . . . . . . . . . 6 . 2 8 Utility 10 | . 1 2 . . . 1 1 . . . . . . . . 1 1 2 . 1 Weapon 11 | . 1 1 . . . . 1 . . . . . . . . 1 1 . . 6 Highest Loss Streak 12 | . 2 5 1 . . 1 3 . . . . . . . . 2 4 2 2 12 To Critical Strikes . | . . . . . . . . . . . . . . . . . . . . . Average Backups 19 | 3 7 15 24 24 24 24 22 18 17 19 19 18 19 19 20 19 18 18 18 19 Power 1 | . 1 2 1 2 2 2 2 1 2 2 2 2 2 2 2 2 1 . . . Propulsion 3 | 1 3 2 6 7 7 7 7 5 1 . . . 2 2 2 2 2 4 3 2 Utility 6 | . . 2 3 3 3 3 4 5 6 8 9 7 8 8 10 9 9 9 8 8 Weapon 7 | . 1 7 12 12 12 11 8 7 7 8 8 8 7 6 6 5 5 5 7 7 Tool/Special . | . . . . . . . . . . . . . . . . . . . . . Unused Backups 43 | . . . 1 . . 8 10 5 . 2 1 2 . 2 . 1 2 . 2 7 Power 4 | . . . . . . . 3 . . . . . . . . . . . . 1 Propulsion 8 | . . . 1 . . . 2 5 . . . . . . . . . . . . Utility 10 | . . . . . . . 1 . . 1 . 1 . . . 1 1 . 2 3 Weapon 21 | . . . . . . 8 4 . . 1 1 1 . 2 . . 1 . . 3 Tool/Special . | . . . . . . . . . . . . . . . . . . . . . Average Slot Usage (%) 95 | . 99 79 91 100 100 94 96 100 99 97 100 97 100 100 100 99 96 96 90 86 Engine 1 | . 4 5 11 11 11 5 . . . . . . . . . . 3 . . . Core 6 | . 9 5 . . . 3 7 7 7 7 7 6 6 6 6 6 6 11 11 4 Treads 24 | . 24 . 11 11 11 15 26 38 37 35 38 33 33 33 33 33 23 17 17 3 Wheel 7 | . 3 21 19 22 22 18 8 . . . . . . . . . 3 11 7 23 Device 6 | . 13 4 . . . 7 5 . . . . 11 13 13 13 12 14 8 10 7 Storage 7 | . 14 11 11 11 11 9 7 7 7 7 7 6 6 6 6 6 5 5 5 4 Processor 6 | . . 2 11 11 11 9 7 7 7 7 7 6 6 6 6 6 5 5 5 8 Hackware 7 | . . . . . . . 7 15 15 15 15 8 6 6 6 6 8 11 5 4 Protection 6 | . . 5 5 11 11 8 8 7 7 6 7 4 6 6 6 6 4 4 5 4 Energy Gun 2 | . . 2 11 11 11 8 2 . . . . . . . . . 1 4 4 4 Energy Cannon 1 | . . 5 . . . . . . . . . 4 6 6 6 6 3 . . . Ballistic Gun 7 | . 27 13 11 11 11 8 3 7 7 7 7 6 6 6 6 . 5 6 5 4 Ballistic Cannon 4 | . . . . . . . 5 7 6 7 6 6 6 5 6 11 5 2 5 3 Peak Build Rating 96 | 7 9 19 26 25 25 35 50 48 48 53 48 60 61 66 66 68 79 75 75 96 Average Rating 46 | 4 8 12 19 25 25 28 43 47 47 47 48 56 60 62 66 66 72 70 69 78 On Entrance 43 | . 7 7 19 25 25 25 33 48 48 46 48 48 60 61 66 66 65 68 75 70 Naked Turns 12 | . . . . . . . . . . . . . . . . . . . . 12 Heaviest Build 132 | 14 89 95 94 94 94 101 124 63 63 63 64 70 70 70 70 96 94 97 103 132 Greatest Support 121 | 40 40 36 20 20 20 30 112 112 112 110 110 110 110 120 120 120 121 20 20 62 Greatest Overweight (x) 30 | . 3 30 9 4 4 5 11 . . . . . . . . . 8 4 10 6 Average Overweight (x) 1 | . . 4 4 4 4 3 3 . . . . . . . . . 1 3 6 1 Largest Inventory Capacity 25 | 8 25 25 25 25 25 25 25 20 20 20 20 20 20 20 20 20 20 20 20 20 Average Capacity 21 | 6 12 25 25 25 25 25 23 20 20 20 20 20 20 20 20 20 20 20 20 19 Most Carried 25 | 5 9 25 25 24 24 25 25 20 20 20 20 20 20 20 20 20 20 20 20 20 Average Carried 19 | 3 7 15 24 24 24 24 22 18 17 19 19 19 19 19 20 19 19 19 18 19 Final Capacity 25 | 8 25 25 25 25 25 25 20 20 20 20 20 20 20 20 20 20 20 20 20 5 Final Carried 25 | 5 9 25 24 24 24 25 20 17 20 20 20 20 20 20 20 20 20 20 19 5 Class Distribution -------------------- 25% | Hacker-Mutant 25% | Mutant 20% | Skirmisher 14% | Scavenger-Mutant 5% | Scavenger-Tank 3% | Tank 3% | Hacker-Skirmisher Dominant Class ---------------- Mutant | -10/Materials Mutant | -9/Materials Mutant | -9/Mines Mutant | -9/Exiles Mutant | -8/Mines Scavenger-Mutant | -8/Materials Scavenger-Mutant | -7/Factory Hacker-Mutant | -7/Lower Caves Hacker-Mutant | -7/Lower Caves Hacker-Mutant | -7/Zion Hacker-Mutant | -6/Proximity Caves Skirmisher | -6/Factory Skirmisher | -6/Lower Caves Skirmisher | -6/Lower Caves Skirmisher | -6/Data Miner Skirmisher | -5/Proximity Caves Skirmisher | -5/Factory Hacker-Skirmisher | -5/Upper Caves Tank | -5/Upper Caves Scavenger-Tank | -5/Warlord Resources | -11 -10 -9 -9 -9 -8 -8 -7 -7 -7 -7 -6 -6 -6 -6 -6 -5 -5 -5 -5 -5 ----------- Run | Yrd Mat Mat Min Exi Min Mat Fac Low Low Zio Pro Fac Low Low Dat Pro Fac Upp Upp War Matter Collected 5691 | 163 236 569 296 20 . 315 810 145 172 156 86 41 105 268 . 236 820 175 355 723 Remotely 973 | . . . . . . . . . . . . . . . . . 318 . . 655 Salvage Created 5718 | 42 301 778 352 . . 1048 542 45 59 . 162 129 53 139 . 116 838 112 190 812 Parts 294 | 6 25 47 22 . . 48 32 1 7 . 7 14 . 4 . 4 45 . 4 28 Haulers Intercepted 1 | . . . . . . 1 . . . . . . . . . . . . . . Recyclers Shooed 2 | . . . . . . . 1 . . . . . . . . . 1 . . . Parts Field Recycled . | . . . . . . . . . . . . . . . . . . . . . Retrieved Matter . | . . . . . . . . . . . . . . . . . . . . . Parts Self-Destructed 26 | . . . . . . . . 1 7 1 8 . . 2 . 2 . 2 3 . Prevented 2 | . . . . . . . . . . . 1 . . . . . . . 1 . Kills | -11 -10 -9 -9 -9 -8 -8 -7 -7 -7 -7 -6 -6 -6 -6 -6 -5 -5 -5 -5 -5 ------- Run | Yrd Mat Mat Min Exi Min Mat Fac Low Low Zio Pro Fac Low Low Dat Pro Fac Upp Upp War Combat Hostiles Destroyed 127 | . 7 14 6 . . 16 12 2 7 . 4 2 . 9 . 8 13 5 3 19 Guns 55 | . 7 8 5 . . 16 6 . 3 . 1 . . . . . 5 1 3 . Cannons 29 | . . 5 . . . . 3 1 1 . . 2 . 4 . 3 4 1 . 5 AOE 40 | . . . . . . . 3 . 3 . 3 . . 5 . 5 4 3 . 14 Classes Destroyed 18 | 1 3 4 2 . . 2 1 . . . 1 . 1 . . . . . . 3 Worker 9 | . . . 1 . . . 3 . . . . 2 . . . . 3 . . . Builder 7 | . . . 1 . . 2 . . . . . 1 . . . . 3 . . . Tunneler 4 | 3 . 1 . . . . . . . . . . . . . . . . . . Hauler 1 | . . . . . . 1 . . . . . . . . . . . . . . Recycler 10 | . . 1 2 . . 2 2 . . . . . . . . . 3 . . . Mechanic 1 | . . . . . . . . . . . . . . . . . . . . 1 Operator 3 | . . 1 . . . 1 . . . . . 1 . . . . . . . . Watcher 4 | . 1 1 . . . 1 1 . . . . . . . . . . . . . Swarmer 36 | . 1 . 3 . . . 5 2 7 . . . . 3 . 4 5 . . 6 Grunt 48 | . 6 10 3 . . 10 . . . . 3 . . 4 . . . 2 2 8 Brawler 5 | . . 1 . . . . . . . . . . . 1 . . . . 1 2 Duelist 3 | . . . . . . . . . . . 1 . . . . . . 2 . . Protector 2 | . . . . . . . . . . . . . . . . . . . . 2 Sentry 15 | . . 3 . . . 5 3 . . . . 1 . 1 . . 1 1 . . Hunter 8 | . . . . . . 1 1 . . . . . . . . 4 2 . . . Programmer 9 | . . . . . . . 3 . . . . 1 . . . . 5 . . . Executioner 1 | . . . . . . . . . . . . . . . . . . . . 1 Samaritan 1 | . . . . . . . . . . . . . 1 . . . . . . . Thug 2 | . . . . . . . . . . . . . . . . . . . . 2 Best Kill Streak 10 | 2 3 5 3 . . 6 3 2 4 . 3 4 . 9 . 4 8 4 3 10 Combat Bots Only 10 | . 3 5 3 . . 4 3 2 4 . 3 1 . 9 . 4 6 4 3 10 Max Kills in Single Turn 5 | 1 1 1 1 . . 2 2 1 3 . 3 2 1 2 . 2 4 2 1 5 Gunslinging . | . . . . . . . . . . . . . . . . . . . . . Exploded 4 | . . . . . . . 2 . 3 . 3 . . 2 . 2 2 2 . 4 Melee . | . . . . . . . . . . . . . . . . . . . . . Uniques/NPCs Destroyed . | . . . . . . . . . . . . . . . . . . . . . Combat | -11 -10 -9 -9 -9 -8 -8 -7 -7 -7 -7 -6 -6 -6 -6 -6 -5 -5 -5 -5 -5 -------- Run | Yrd Mat Mat Min Exi Min Mat Fac Low Low Zio Pro Fac Low Low Dat Pro Fac Upp Upp War Hostile Shots Fired 994 | . 65 117 21 . 2 63 185 7 31 . 6 40 . 30 . 81 138 24 13 171 Missed 265 | . 16 39 4 . . 21 56 4 9 . . 13 . 5 . 16 33 6 3 40 Hits 729 | . 49 78 17 . 2 42 129 3 22 . 6 27 . 25 . 65 105 18 10 131 Melee 9 | . . . . . . . . . 5 . . . . . . . . 1 . 3 Projectile 720 | . 49 78 17 . 2 42 129 3 17 . 6 27 . 25 . 65 105 17 10 128 Critical Strikes 25 | . . 4 1 . 1 2 1 . . . 1 . . . . 2 3 2 1 7 Damage Taken 11350 | . 532 1030 215 . 31 730 1413 44 306 . 112 294 . 540 . 893 2080 438 189 2503 Core 1783 | . 133 196 38 . 16 60 112 . 42 . . 39 . 61 . 73 261 46 . 706 Absorbed by Shields 417 | . . . . . . . . . . . . . . . . . . . . 417 Ignored by Resistances 124 | . . . . . . . 25 . . . . . . . . 99 . . . . Regen/Repaired (Parts) 923 | . . . . . . . . . . 817 . . . . . . . . . 106 Core Remaining (%) 71 | 100 46 . . . 37 89 . . . . 78 . . . . 79 . . . . Volleys Fired 451 | 6 36 62 20 . . 49 58 4 15 1 6 9 7 14 . 26 58 28 8 44 Largest 3 | 2 2 2 2 . . 2 2 1 2 1 2 3 1 3 . 3 3 3 3 3 Hottest 225 | 40 40 84 108 . . 105 120 40 68 40 73 158 85 158 . 165 165 225 143 158 Shots Fired 854 | 12 70 123 40 . . 95 101 6 27 1 9 17 7 24 . 41 141 37 23 80 Gun 532 | 12 70 82 40 . . 95 47 . 12 . 3 4 . 5 . . 81 31 14 36 Cannon 281 | . . 41 . . . . 49 6 12 1 4 13 7 12 . 33 57 4 9 33 Launcher 41 | . . . . . . . 5 . 3 . 2 . . 7 . 8 3 2 . 11 Special . | . . . . . . . . . . . . . . . . . . . . . Kinetic 545 | 12 70 69 20 . . 46 80 6 24 1 7 8 . 10 . 17 88 10 16 61 Thermal 263 | . . 54 20 . . 49 16 . . . . 9 7 7 . 16 50 25 3 7 Explosive 41 | . . . . . . . 5 . 3 . 2 . . 7 . 8 3 2 . 11 Electromagnetic 5 | . . . . . . . . . . . . . . . . . . . 4 1 Robot Hit Streak 18 | 5 14 8 10 . . 12 10 1 3 . 4 2 2 5 . 6 18 10 12 11 Robot Miss Streak 6 | 1 4 3 2 . . 4 5 2 3 . 1 3 4 3 . 2 6 3 1 3 Penetration Max 1 | . . . . . . . . . . . . . . . . . 1 . 1 1 Secondary Targets 10 | . 2 1 2 . . 4 . . . . . . . . . . 1 . . . Max Gunslinging Chain 1 | . 1 1 1 . . 1 . . . . . . . . . . 1 . . . Shots Hit Robots 504 | 8 52 73 27 . . 74 60 2 12 . 5 4 2 10 . 21 77 11 16 50 Core Hits 359 | 4 17 26 9 . . 55 31 1 9 . 8 7 2 20 . 13 34 23 9 91 Critical Kills 2 | . . 1 . . . . . . . . . . . . . . 1 . . . Critical Parts Destroyed 8 | . 1 . . . . 1 1 . . . . . . 1 . . 3 . . 1 Critical Strikes 27 | . 1 1 5 . . 1 2 2 1 . 1 . . 1 . 3 7 . . 2 Burn 5 | . . . 5 . . . . . . . . . . . . . . . . . Meltdown 1 | . . 1 . . . . . . . . . . . . . . . . . . Destroy 9 | . 1 . . . . 1 1 . . . . . . 1 . . 4 . . 1 Blast 12 | . . . . . . . 1 2 1 . 1 . . . . 3 3 . . 1 Melee Attacks 12 | . . . . . . . 5 . . . . . . . . . . 1 . 6 Impact . | . . . . . . . . . . . . . . . . . . . . . Slashing 5 | . . . . . . . 5 . . . . . . . . . . . . . Piercing 7 | . . . . . . . . . . . . . . . . . . 1 . 6 Sneak Attacks 3 | . . . . . . . 3 . . . . . . . . . . . . . Combat Hostiles . | . . . . . . . . . . . . . . . . . . . . . Follow-up Attacks . | . . . . . . . . . . . . . . . . . . . . . Damage Inflicted 18289 | 92 539 1207 464 . . 1782 1856 60 757 . 331 530 63 1311 . 1218 3008 730 348 3993 Guns 6402 | 92 539 758 464 . . 1590 721 . 160 . 73 50 . 42 . . 1142 101 213 457 Cannons 3724 | . . 439 . . . . 665 60 164 . 55 64 63 201 . 404 815 103 135 556 Explosions 7892 | . . . . . . 187 218 . 433 . 203 416 . 1068 . 814 1047 526 . 2980 Melee 241 | . . . . . . . 241 . . . . . . . . . . . . . Ramming 30 | . . 10 . . . 5 11 . . . . . . . . . 4 . . . Kinetic 6553 | 92 539 688 134 . . 452 1089 60 324 . 128 114 . 124 . 220 1272 164 274 879 Thermal 4066 | . . 509 330 . . 1138 297 . . . . . 63 119 . 184 1219 40 33 134 Explosive 7358 | . . . . . . 187 218 . 433 . 203 416 . 1068 . 814 513 526 . 2980 Electromagnetic 41 | . . . . . . . . . . . . . . . . . . . 41 . Impact . | . . . . . . . . . . . . . . . . . . . . . Slashing 241 | . . . . . . . 241 . . . . . . . . . . . . . Piercing . | . . . . . . . . . . . . . . . . . . . . . Highest Corruption 7 | . . . . . . 2 7 7 7 7 . . . . . . 4 4 4 4 Average Corruption 4 | . . . . . . 1 2 7 7 7 . . . . . . 2 4 4 4 Corruption Purged 2 | . . . . . . . 2 . . . . . . . . . . . . . Corruption Blocked . | . . . . . . . . . . . . . . . . . . . . . Effects 90 | . . . . . . 4 9 14 24 8 . . . . . . 9 8 12 2 Message Errors 17 | . . . . . . 1 1 3 7 2 . . . . . . . 1 . 2 Matter Fused 22 | . . . . . . 2 3 2 4 4 . . . . . . 4 . 3 . Heat Flow Errors 14 | . . . . . . . 2 3 3 . . . . . . . 1 4 1 . Energy Discharges 13 | . . . . . . 1 1 . 6 1 . . . . . . . . 4 . Parts Rejected 1 | . . . . . . . . . . . . . . . . . 1 . . . Parts Fused 1 | . . . . . . . . . 1 . . . . . . . . . . . Data Loss (minor) 11 | . . . . . . . 2 2 3 1 . . . . . . . 2 1 . Data Loss (major) 3 | . . . . . . . . 1 . . . . . . . . 1 . 1 . Misfires 5 | . . . . . . . . 2 . . . . . . . . 1 1 1 . Alerts 3 | . . . . . . . . 1 . . . . . . . . 1 . 1 . Overload Shots 6 | . . . . . . . . . . . . . . . . . . 6 . . Overflow Damage 553 | . . . . . . . 111 5 31 . . 56 . 14 . 44 232 . . 60 Projectiles 46 | . . . . . . . 22 5 1 . . . . . . 15 3 . . . Explosions 419 | . . . . . . . 1 . 30 . . 56 . 14 . 29 229 . . 60 Melee 88 | . . . . . . . 88 . . . . . . . . . . . . . Knockbacks 23 | . . . . . . . 5 2 3 . 2 . . . . 2 3 1 1 4 Impact . | . . . . . . . . . . . . . . . . . . . . . Kinetic 22 | . . . . . . . 5 1 3 . 2 . . . . 2 3 1 1 4 Secondary 1 | . . . . . . . . 1 . . . . . . . . . . . . Self-Inflicted Damage 550 | . . 5 . . . 80 82 . . . . 78 . 56 . . 178 20 . 51 Shots 12 | . . . . . . 1 2 . . . . 1 . 3 . . 2 1 . 2 Rammed 4 | . . 1 . . . 1 1 . . . . . . . . . 1 . . . Targets Rammed 4 | . . 1 . . . 1 1 . . . . . . . . . 1 . . . Kicked . | . . . . . . . . . . . . . . . . . . . . . Crushed . | . . . . . . . . . . . . . . . . . . . . . Highest Temperature 505 | . 30 267 345 . 7 289 251 276 185 . 22 78 136 246 . 367 505 445 293 311 Average Temperature 94 | . 10 74 102 . 7 69 47 119 91 . 14 22 63 126 . 124 116 130 139 96 Received Heat Transfer 2303 | . 231 534 93 . 36 288 162 . . . 72 54 . 135 . . 27 108 108 455 Effects 13 | . . . . . . . . . . . . . . . . 2 2 9 . . Shutdowns 4 | . . . . . . . . . . . . . . . . 1 1 2 . . Energy Bleed 1 | . . . . . . . . . . . . . . . . . . 1 . . Interference 4 | . . . . . . . . . . . . . . . . . 1 3 . . Matter Decay 1 | . . . . . . . . . . . . . . . . 1 . . . . Damage (major) 3 | . . . . . . . . . . . . . . . . . . 3 . . Siege Activations . | . . . . . . . . . . . . . . . . . . . . . Martial Activations . | . . . . . . . . . . . . . . . . . . . . . Shielding Activations . | . . . . . . . . . . . . . . . . . . . . . Robots Disrupted . | . . . . . . . . . . . . . . . . . . . . . Combat Hostiles . | . . . . . . . . . . . . . . . . . . . . . Robots Corrupted 1 | . . . . . . . . 1 . . . . . . . . . . . . Combat Hostiles 1 | . . . . . . . . 1 . . . . . . . . . . . . Parts Fried 1 | . . . . . . . . . . . . . . . . . . . . 1 Impact Corruptions 1 | . . . . . . . . 1 . . . . . . . . . . . . Robots Melted 2 | . . 1 1 . . . . . . . . . . . . . . . . . Combat Hostiles 2 | . . 1 1 . . . . . . . . . . . . . . . . . Parts Melted 15 | . . 3 4 . . 5 1 . . . . . . . . . 1 . . 1 Heat Transferred 7416 | . . 1073 1087 . . 2575 647 . . . . . 74 148 . 222 1238 74 74 204 Parts Sabotaged . | . . . . . . . . . . . . . . . . . . . . . Parts Stolen 2 | . . . . . . . . . 2 . . . . . . . . . . . Parts Stripped . | . . . . . . . . . . . . . . . . . . . . . Power Chain Reactions . | . . . . . . . . . . . . . . . . . . . . . Alert | -11 -10 -9 -9 -9 -8 -8 -7 -7 -7 -7 -6 -6 -6 -6 -6 -5 -5 -5 -5 -5 ------- Run | Yrd Mat Mat Min Exi Min Mat Fac Low Low Zio Pro Fac Low Low Dat Pro Fac Upp Upp War Maximum Alert Level 1 | . . . . . . 1 . . . . . . . . . . 1 . . . Low Security (%) 92 | 100 100 100 100 . 100 63 100 . . . . 100 . . . . 77 . . . Level 1 7 | . . . . . . 36 . . . . . . . . . . 22 . . . Level 2 . | . . . . . . . . . . . . . . . . . . . . . Level 3 . | . . . . . . . . . . . . . . . . . . . . . Level 4 . | . . . . . . . . . . . . . . . . . . . . . Level 5 . | . . . . . . . . . . . . . . . . . . . . . High Security . | . . . . . . . . . . . . . . . . . . . . . Max Security . | . . . . . . . . . . . . . . . . . . . . . Peak Influence 342 | 5 70 121 68 . . 289 142 . . . . 122 . . . . 342 . . . Initial 91 | . . 16 8 . . . 91 . . . . . . . . . . . . . Average 51 | 1 21 38 9 . . 116 52 . . . . 20 . . . . 102 . . . Influence Increases 3758 | 15 192 417 160 . . 509 452 65 160 . 90 183 . 180 . 190 620 100 70 355 Destroy 0b10 Robot/C 2500 | . 140 280 120 . . 320 240 40 140 . 80 40 . 180 . 160 260 100 60 340 Destroy 0b10 Robot/NC 205 | 15 5 20 20 . . 35 30 . . . . 20 . . . . 45 . . 15 Destroy Leader 450 | . 32 72 20 . . 94 72 10 20 . 10 20 . . . 30 60 . 10 . Successful Hack 72 | . . 14 . . . 4 6 . . . . 12 . . . . 36 . . . Disable Machine 165 | . . . . . . 15 15 . . . . 75 . . . . 60 . . . Destroy Structure 246 | . . 1 . . . 26 59 . . . . 16 . . . . 144 . . . Lose Combat Pursuer 120 | . 15 30 . . . 15 30 15 . . . . . . . . 15 . . . Influence Decreases 3685 | 15 152 434 183 . . 306 549 171 160 . 90 129 54 180 . 190 303 393 94 282 Entered New Map 337 | . . 24 15 . . . 112 40 . . . . 21 . . . . 119 6 . Time Decay 2858 | 15 132 330 148 . . 276 397 131 160 . 90 129 33 180 . 190 203 254 68 122 Lost Part 490 | . 20 80 20 . . 30 40 . . . . . . . . . 100 20 20 160 Squads Dispatched 19 | . 1 2 . . . 2 6 . . . . 4 . 1 . . 3 . . . Investigation 2 | . 1 1 . . . . . . . . . . . . . . . . . . Extermination 9 | . . . . . . . 5 . . . . 2 . . . . 2 . . . Reinforcement 7 | . . 1 . . . 2 1 . . . . 2 . . . . 1 . . . Assault 1 | . . . . . . . . . . . . . . 1 . . . . . . Garrison . | . . . . . . . . . . . . . . . . . . . . . Intercept . | . . . . . . . . . . . . . . . . . . . . . Searches Triggered . | . . . . . . . . . . . . . . . . . . . . . Construction Impeded . | . . . . . . . . . . . . . . . . . . . . . Haulers Reinforced . | . . . . . . . . . . . . . . . . . . . . . Active Scanning Responses . | . . . . . . . . . . . . . . . . . . . . . Cargo Convoy Interrupts . | . . . . . . . . . . . . . . . . . . . . . Stealth | -11 -10 -9 -9 -9 -8 -8 -7 -7 -7 -7 -6 -6 -6 -6 -6 -5 -5 -5 -5 -5 --------- Run | Yrd Mat Mat Min Exi Min Mat Fac Low Low Zio Pro Fac Low Low Dat Pro Fac Upp Upp War Distress Signals 3 | . . 1 . . . 1 1 . . . . . . . . . . . . . Communications Jammed 6 | . . . . . . . . . . . . . . . . . 6 . . . Distress Signals 6 | . . . . . . . . . . . . . . . . . 6 . . . Times Spotted 225 | . 11 18 6 . 3 27 22 3 9 . 4 4 . 9 . 8 15 9 3 74 Peak Tracking Total 21 | . 3 4 3 . 3 5 7 3 4 . 4 3 . 9 . 4 8 5 3 21 Tactical Retreats 7 | . 1 1 . . . 1 2 1 . . . . . . . . 1 . . . Traps | -11 -10 -9 -9 -9 -8 -8 -7 -7 -7 -7 -6 -6 -6 -6 -6 -5 -5 -5 -5 -5 ------- Run | Yrd Mat Mat Min Exi Min Mat Fac Low Low Zio Pro Fac Low Low Dat Pro Fac Upp Upp War Traps Triggered 12 | . 1 1 1 . . 2 7 . . . . . . . . . . . . . Indirectly . | . . . . . . . . . . . . . . . . . . . . . Trap Hack Attempts . | . . . . . . . . . . . . . . . . . . . . . Triggered . | . . . . . . . . . . . . . . . . . . . . . Disarmed . | . . . . . . . . . . . . . . . . . . . . . Reprogrammed . | . . . . . . . . . . . . . . . . . . . . . Reused . | . . . . . . . . . . . . . . . . . . . . . Traps Extracted . | . . . . . . . . . . . . . . . . . . . . . Installed . | . . . . . . . . . . . . . . . . . . . . . Triggered . | . . . . . . . . . . . . . . . . . . . . . Machines | -11 -10 -9 -9 -9 -8 -8 -7 -7 -7 -7 -6 -6 -6 -6 -6 -5 -5 -5 -5 -5 ---------- Run | Yrd Mat Mat Min Exi Min Mat Fac Low Low Zio Pro Fac Low Low Dat Pro Fac Upp Upp War Machines Disabled 13 | . . . . . . 1 1 . . . . 5 . . . . 4 . 1 1 Max in Single Turn 3 | . . . . . . 1 1 . . . . 3 . . . . 2 . 1 1 Machines Repaired . | . . . . . . . . . . . . . . . . . . . . . Machines Dismantled . | . . . . . . . . . . . . . . . . . . . . . Machines Sabotaged . | . . . . . . . . . . . . . . . . . . . . . Overloaded Fab Kills . | . . . . . . . . . . . . . . . . . . . . . Hacking | -11 -10 -9 -9 -9 -8 -8 -7 -7 -7 -7 -6 -6 -6 -6 -6 -5 -5 -5 -5 -5 --------- Run | Yrd Mat Mat Min Exi Min Mat Fac Low Low Zio Pro Fac Low Low Dat Pro Fac Upp Upp War Machines Accessed 33 | . . 3 1 1 1 6 7 2 . . . 2 1 1 4 . 3 . . 1 Terminals 19 | . . 3 . . 1 6 4 . . . . 2 . . . . 3 . . . Fabricators . | . . . . . . . . . . . . . . . . . . . . . Repair Stations 1 | . . . . . . . 1 . . . . . . . . . . . . . Recycling Units 1 | . . . . . . . 1 . . . . . . . . . . . . . Scanalyzers 1 | . . . . . . . 1 . . . . . . . . . . . . . Garrison Access . | . . . . . . . . . . . . . . . . . . . . . Total Hacks 82 | . . 7 1 1 3 13 14 6 . . . 5 1 1 25 . 4 . . 1 Successful 55 | . . 4 1 1 2 5 4 6 . . . 1 1 1 25 . 3 . . 1 Failed 27 | . . 3 . . 1 8 10 . . . . 4 . . . . 1 . . . Catastrophic 5 | . . . . . . 1 3 . . . . . . . . . 1 . . . Database Lockouts . | . . . . . . . . . . . . . . . . . . . . . Manual 13 | . . 3 . . 1 . 5 . . . . 2 . . . . 1 . . 1 Terminals 39 | . . 7 . . 3 13 7 . . . . 5 . . . . 4 . . . Fabricators . | . . . . . . . . . . . . . . . . . . . . . Repair Stations 2 | . . . . . . . 2 . . . . . . . . . . . . . Recycling Units 3 | . . . . . . . 3 . . . . . . . . . . . . . Scanalyzers 2 | . . . . . . . 2 . . . . . . . . . . . . . Garrison Access . | . . . . . . . . . . . . . . . . . . . . . Terminal Hacks 51 | . . 3 1 1 2 5 1 6 . . . 1 1 1 25 . 3 . . 1 Record 20 | . . . . 1 2 1 . 5 . . . . . . 11 . . . . . Part Schematic 9 | . . . . . . . . . . . . . . . 9 . . . . . Robot Schematic 2 | . . . . . . . . . . . . . . . 2 . . . . . Prototype ID Bank 5 | . . 1 . . . . . . . . . . . . 3 . 1 . . . Open Door 5 | . . . 1 . . . . 1 . . . . 1 1 . . . . . 1 Branch Access Points 3 | . . . . . . . 1 . . . . 1 . . . . 1 . . . Emergency Access Points 1 | . . . . . . 1 . . . . . . . . . . . . . . Maintenance Status 1 | . . . . . . 1 . . . . . . . . . . . . . . Recall Reinforcements 1 | . . . . . . 1 . . . . . . . . . . . . . . Hauler Manifests 2 | . . 1 . . . 1 . . . . . . . . . . . . . . Zone Layout 2 | . . 1 . . . . . . . . . . . . . . 1 . . . Fabricator Hacks . | . . . . . . . . . . . . . . . . . . . . . Repair Station Hacks . | . . . . . . . . . . . . . . . . . . . . . Recycling Unit Hacks 1 | . . . . . . . 1 . . . . . . . . . . . . . Retrieve Components 1 | . . . . . . . 1 . . . . . . . . . . . . . Scanalyzer 2 | . . . . . . . 2 . . . . . . . . . . . . . Insert Component 1 | . . . . . . . 1 . . . . . . . . . . . . . Analyze 1 | . . . . . . . 1 . . . . . . . . . . . . . Garrison Access Hacks . | . . . . . . . . . . . . . . . . . . . . . Unauthorized Hacks 1 | . . 1 . . . . . . . . . . . . . . . . . . Terminals 1 | . . 1 . . . . . . . . . . . . . . . . . . Botnet 1 | . . 1 . . . . . . . . . . . . . . . . . . Fabricators . | . . . . . . . . . . . . . . . . . . . . . Repair Stations . | . . . . . . . . . . . . . . . . . . . . . Recycling Units . | . . . . . . . . . . . . . . . . . . . . . Scanalyzers . | . . . . . . . . . . . . . . . . . . . . . Garrison Access . | . . . . . . . . . . . . . . . . . . . . . Data Cores Recovered . | . . . . . . . . . . . . . . . . . . . . . Used . | . . . . . . . . . . . . . . . . . . . . . Hacking Detections 14 | . . 1 . . . 4 5 . . . . 2 . . . . 2 . . . Full Trace Events . | . . . . . . . . . . . . . . . . . . . . . Feedback Events . | . . . . . . . . . . . . . . . . . . . . . Feedback Blocked . | . . . . . . . . . . . . . . . . . . . . . Robot Schematics Acquired 6 | . . . . . . . . . . 4 . . . . 2 . . . . . Robots Built . | . . . . . . . . . . . . . . . . . . . . . Authchips . | . . . . . . . . . . . . . . . . . . . . . Time . | . . . . . . . . . . . . . . . . . . . . . Total Robot Build Rating . | . . . . . . . . . . . . . . . . . . . . . Part Schematics Acquired 25 | . . . . . . . 1 . . 15 . . . . 9 . . . . . Parts Built . | . . . . . . . . . . . . . . . . . . . . . Authchips . | . . . . . . . . . . . . . . . . . . . . . Time . | . . . . . . . . . . . . . . . . . . . . . Total Part Build Rating . | . . . . . . . . . . . . . . . . . . . . . Parts Repaired . | . . . . . . . . . . . . . . . . . . . . . Time . | . . . . . . . . . . . . . . . . . . . . . Parts Recycled . | . . . . . . . . . . . . . . . . . . . . . Recycled Matter . | . . . . . . . . . . . . . . . . . . . . . Retrieved Matter . | . . . . . . . . . . . . . . . . . . . . . Retrieved Components . | . . . . . . . . . . . . . . . . . . . . . Parts Scanalyzed 1 | . . . . . . . 1 . . . . . . . . . . . . . Part Schematics Acquired 1 | . . . . . . . 1 . . . . . . . . . . . . . Parts Damaged 1 | . . . . . . . 1 . . . . . . . . . . . . . Bothacking | -11 -10 -9 -9 -9 -8 -8 -7 -7 -7 -7 -6 -6 -6 -6 -6 -5 -5 -5 -5 -5 ------------ Run | Yrd Mat Mat Min Exi Min Mat Fac Low Low Zio Pro Fac Low Low Dat Pro Fac Upp Upp War Used RIF Installer . | . . . . . . . . . . . . . . . . . . . . . Robots Hacked . | . . . . . . . . . . . . . . . . . . . . . Non-combat . | . . . . . . . . . . . . . . . . . . . . . Combat . | . . . . . . . . . . . . . . . . . . . . . Robot Hacks Applied . | . . . . . . . . . . . . . . . . . . . . . Relay Couplers Released . | . . . . . . . . . . . . . . . . . . . . . Fabnet Peak Effective % . | . . . . . . . . . . . . . . . . . . . . . Robots Rewired . | . . . . . . . . . . . . . . . . . . . . . Allies Hacked . | . . . . . . . . . . . . . . . . . . . . . Hacks Repelled . | . . . . . . . . . . . . . . . . . . . . . Allies | -11 -10 -9 -9 -9 -8 -8 -7 -7 -7 -7 -6 -6 -6 -6 -6 -5 -5 -5 -5 -5 -------- Run | Yrd Mat Mat Min Exi Min Mat Fac Low Low Zio Pro Fac Low Low Dat Pro Fac Upp Upp War Total Allies . | . . . . . . . . . . . . . . . . . . . . . Largest Group . | . . . . . . . . . . . . . . . . . . . . . Highest-Rated Group . | . . . . . . . . . . . . . . . . . . . . . Highest-Rated Ally . | . . . . . . . . . . . . . . . . . . . . . Total Orders . | . . . . . . . . . . . . . . . . . . . . . Ally Attacks . | . . . . . . . . . . . . . . . . . . . . . Total Damage . | . . . . . . . . . . . . . . . . . . . . . Kills . | . . . . . . . . . . . . . . . . . . . . . Allies Corrupted . | . . . . . . . . . . . . . . . . . . . . . Allies Melted . | . . . . . . . . . . . . . . . . . . . . . Intel | -11 -10 -9 -9 -9 -8 -8 -7 -7 -7 -7 -6 -6 -6 -6 -6 -5 -5 -5 -5 -5 ------- Run | Yrd Mat Mat Min Exi Min Mat Fac Low Low Zio Pro Fac Low Low Dat Pro Fac Upp Upp War Active Infowar (turns) 13194 | 26 459 241 807 272 166 887 1950 455 672 1667 528 824 584 596 129 776 815 550 517 273 Sensors 3871 | . . . 2 . . 201 213 . . 6 . . 569 596 129 764 613 281 438 59 Terrain 3770 | . . . . . . . . . . . . 662 584 596 129 620 443 522 . 214 Seismic 485 | 26 459 . . . . . . . . . . . . . . . . . . . Machine Analysis 7903 | . . 241 807 272 166 887 1950 455 672 1667 528 258 . . . . . . . . Jamming 378 | . . . . . . . . . . . . . . . . . 273 26 79 . Robot Analysis Total . | . . . . . . . . . . . . . . . . . . . . . Derelict Logs Recovered 12 | . . . 2 . . . . . 2 2 3 . . 2 . . . 1 . . Drone Launches . | . . . . . . . . . . . . . . . . . . . . . Drone Recoveries . | . . . . . . . . . . . . . . . . . . . . . Exploration | -11 -10 -9 -9 -9 -8 -8 -7 -7 -7 -7 -6 -6 -6 -6 -6 -5 -5 -5 -5 -5 ------------- Run | Yrd Mat Mat Min Exi Min Mat Fac Low Low Zio Pro Fac Low Low Dat Pro Fac Upp Upp War Turns Passed 14499 | 140 475 982 807 272 166 887 1950 455 672 1667 528 824 584 596 129 809 815 550 517 674 Spaces Moved 7763 | 73 226 481 470 195 119 478 1009 281 394 979 312 412 264 307 81 393 369 260 266 394 Core 29 | 1 . 4 . . . . . . . . . . . . . . . . . 24 Treads 4345 | 57 192 . . . . 1 437 281 394 979 312 412 264 307 81 393 235 . . . Legs . | . . . . . . . . . . . . . . . . . . . . . Wheels 3389 | 15 34 477 470 195 119 477 572 . . . . . . . . . 134 260 266 370 Hover . | . . . . . . . . . . . . . . . . . . . . . Flight . | . . . . . . . . . . . . . . . . . . . . . Fastest Speed 50 | 50 135 110 140 140 140 125 125 158 158 161 161 161 161 161 161 161 125 125 140 50 Average Speed 154 | 144 156 154 150 140 140 140 163 158 158 161 161 161 161 161 161 161 153 138 176 109 Slowest Speed 1550 | 160 160 1550 215 140 140 490 545 158 161 161 161 161 161 161 161 161 246 140 230 190 Overloaded Moves . | . . . . . . . . . . . . . . . . . . . . . Propulsion Burnouts . | . . . . . . . . . . . . . . . . . . . . . Robots Hopped . | . . . . . . . . . . . . . . . . . . . . . Potential Cave-ins 12 | . . . . . . . . . . . . . . . . . 2 7 . 3 Cave-ins Triggered . | . . . . . . . . . . . . . . . . . . . . . Exploration Rate (%) 47 | 5 50 47 84 60 48 50 23 46 60 83 48 17 53 52 69 59 12 45 40 51 Regions Visited 20 Branch Regions 14 Pre-discovered Areas 5 | . . . 1 1 . . . . . 2 . . . . 1 . . . . . Known Exits Taken 8 | . . . . . . . 1 . . 1 1 1 . 1 . 1 1 1 . . Unknown Exits Taken 12 | 1 1 1 1 1 1 1 . 1 1 . . . 1 . 1 . . . 1 . Scrap Searched 30 | . . . 2 . 1 . . 2 2 5 3 . 4 5 . 3 . 1 2 . Spaces Dug 91 | . . . . . . . 16 . 11 . . 5 4 19 . 6 10 12 1 7 Terrain Destroyed 584 | . . . . . . 27 76 1 24 . 15 20 5 61 . 83 93 52 3 124 Melee 9 | . . . . . . . 2 . . . . . . . . . . 1 . 6 Projectile 101 | . . . . . . . 12 1 2 . . 8 5 4 . 14 29 14 3 9 AOE 474 | . . . . . . 27 62 . 22 . 15 12 . 57 . 69 64 37 . 109 Terrain Rammed . | . . . . . . . . . . . . . . . . . . . . . Walls Destroyed . | . . . . . . . . . . . . . . . . . . . . . Machines Disabled . | . . . . . . . . . . . . . . . . . . . . . Actions | -11 -10 -9 -9 -9 -8 -8 -7 -7 -7 -7 -6 -6 -6 -6 -6 -5 -5 -5 -5 -5 --------- Run | Yrd Mat Mat Min Exi Min Mat Fac Low Low Zio Pro Fac Low Low Dat Pro Fac Upp Upp War Total 9473 | 93 283 605 536 194 118 608 1211 291 415 1069 328 560 416 391 80 529 502 408 296 540 Wait 819 | . 13 24 21 . . 30 47 . . 77 7 118 143 57 . 99 29 108 4 42 Move 7744 | 72 225 480 469 194 118 477 1009 280 393 978 311 411 263 306 80 392 368 259 265 394 Hop . | . . . . . . . . . . . . . . . . . . . . . Pick Up 108 | 5 3 19 5 . . 11 19 2 4 3 1 5 1 5 . 1 11 2 4 7 Fast Attach 47 | 6 . 6 1 . . 9 6 . . 1 . 1 . . . . 7 . 2 8 Attach 47 | 1 . 6 3 . . 3 8 . 1 1 . 4 . . . 2 8 1 2 7 Detach 18 | . . . 2 . . 2 5 . . . . 3 . . . . 1 . 1 4 Swap 122 | 3 5 7 6 . . 10 19 . 2 4 2 5 1 3 . 8 13 9 6 19 Drop 94 | . 1 . 9 . . 16 27 5 . 4 1 4 1 6 . 1 6 . 4 9 Fire 451 | 6 36 62 20 . . 49 58 4 15 1 6 9 7 14 . 26 58 28 8 44 Melee 12 | . . . . . . . 5 . . . . . . . . . . 1 . 6 Ram 2 | . . 1 . . . 1 . . . . . . . . . . . . . . Kick . | . . . . . . . . . . . . . . . . . . . . . Crush 1 | . . . . . . . . . . . . . . . . . 1 . . . Escape Stasis 8 | . . . . . . . 8 . . . . . . . . . . . . . Rewire . | . . . . . . . . . . . . . . . . . . . . . Trap . | . . . . . . . . . . . . . . . . . . . . . Miscellaneous . | . . . . . . . . . . . . . . . . . . . . . Route ------- -11/Scrapyard -10/Materials (discovered 2 exits: *Mat x2) -9/Materials (discovered 3 exits: *Mat / *Min / [Sto]) -9/Mines (discovered 4 exits: *Mat x2 / *Exi / [*Zio]) -9/Exiles -8/Mines -8/Materials -7/Factory (discovered 3 exits: *Fac / *Low x2) -7/Lower Caves -7/Lower Caves (discovered 2 exits: Fac / [*Zio]) -7/Zion (discovered 2 exits: Dee / *Pro) -6/Proximity Caves -6/Factory (discovered 5 exits: Fac x3 / *Low x2) -6/Lower Caves -6/Lower Caves (discovered 2 exits: Fac / *Dat) -6/Data Miner -5/Proximity Caves -5/Factory (discovered 2 exits: *Upp x2) -5/Upper Caves -5/Upper Caves -5/Warlord (discovered 1 exit: [*Pro]) History --------- Turn | Location | Event 10 | -11/Scrapyard | Discovered new exit (range 15) 141 | -11/Scrapyard | Entered Materials 317 | -10/Materials | Build established: Mutant 421 | -10/Materials | Discovered new exit (range 5) 576 | -10/Materials | Discovered new exit (range 16) 604 | -10/Materials | Core integrity fell below 50% 616 | -10/Materials | Entered another Materials area 616 | -9/Materials | Evolved 2 slots: Propulsion x1, Utility x1 947 | -9/Materials | Lost 3 parts (2n1w) 1151 | -9/Materials | Lost 5 parts (1p2n2u) 1224 | -9/Materials | Discovered new exit (range 11) 1335 | -9/Materials | Discovered new exit (range 11) 1587 | -9/Materials | Discovered new exit (range 9) 1598 | -9/Materials | Entered Mines 1610 | -9/Mines | Core integrity fell below 50% 1628 | -9/Mines | Met a Derelict bent on vengeance 1762 | -9/Mines | Learned location of Zion (-7) 1799 | -9/Mines | Discovered new exit (range 8) 1938 | -9/Mines | Found a damaged Exp. Sensor Array with a note attached 1943 | -9/Mines | Found Prototype Device 1943 | -9/Mines | Identified Exp. Sensor Array 1960 | -9/Mines | A Derelict revealed a hidden shortcut to a safe place 2036 | -9/Mines | Discovered new exit (range 5) 2084 | -9/Mines | Deemed a non-threat by the Exiles lab entrance 2085 | -9/Mines | Discovered new exit (range 5) 2143 | -9/Mines | Learned 4 Materials zone layouts 2217 | -9/Mines | Met a Derelict who couldn't figure out how to use a Trap Extractor 2405 | -9/Mines | Entered Exiles 2440 | -9/Exiles | Met 8R-AWN 2463 | -9/Exiles | Met EX-HEX 2502 | -9/Exiles | Met EX-BIN 2522 | -9/Exiles | Met EX-DEC 2662 | -9/Exiles | Discovered new exit (range 14) 2677 | -9/Exiles | Entered Mines 2827 | -8/Mines | Discovered new exit (range 9) 2843 | -8/Mines | Entered Materials 2843 | -8/Materials | Evolved 2 slots: Propulsion x1, Utility x1 3291 | -8/Materials | Build established: Scavenger-Mutant 3635 | -8/Materials | Discovered new exit (range 10) 3730 | -8/Materials | Entered Factory 3730 | -7/Factory | Evolved 2 slots: Propulsion x1, Utility x1 3977 | -7/Factory | Lost 3 parts (2n1u) 4403 | -7/Factory | Found Prototype Launcher 4403 | -7/Factory | Identified Rocket Array 5069 | -7/Factory | Discovered new exit (range 15) 5182 | -7/Factory | Build established: Mutant 5212 | -7/Factory | Identified exit to Factory 5493 | -7/Factory | Identified exit to Lower Caves 5680 | -7/Factory | Entered Lower Caves 5721 | -7/Lower Caves | Entered an active Warlord outpost 5744 | -7/Lower Caves | Learned Factory trap positions 5744 | -7/Lower Caves | Learned Factory emergency access door positions 5744 | -7/Lower Caves | Learned 8 Factory zone layouts 5786 | -7/Lower Caves | Build established: Hacker-Mutant 5792 | -7/Lower Caves | Encountered a Warlord checkpoint 6028 | -7/Lower Caves | Discovered new exit (range 14) 6135 | -7/Lower Caves | Entered another Lower Caves area 6189 | -7/Lower Caves | Learned location of 1 exit from Factory 6482 | -7/Lower Caves | Encountered a Warlord checkpoint 6521 | -7/Lower Caves | Discovered new exit (range 5) 6674 | -7/Lower Caves | Spotted B-75 Beast 6766 | -7/Lower Caves | Learned location of 1 exit from Factory 6807 | -7/Lower Caves | Entered Zion 6889 | -7/Zion | Found CR-A16's Pointy Stick 6993 | -7/Zion | Discovered new exit (range 10) 7059 | -7/Zion | System corruption cleaned by Quarantine Array 7114 | -7/Zion | Learned 4 Factory zone layouts 7313 | -7/Zion | Given the Hacking Drone Bay 7314 | -7/Zion | Found Prototype Device 7574 | -7/Zion | Identified exit to Proximity Caves 7574 | -7/Zion | Identified exit to Deep Caves 7930 | -7/Zion | Visited the Megawrench Repair Shop 7936 | -7/Zion | Megawrench repaired 9 parts 8474 | -7/Zion | Entered Proximity Caves 8862 | -6/Proximity Caves | Learned Factory stockpile data 8875 | -6/Proximity Caves | Learned Factory terminal intel 9002 | -6/Proximity Caves | Entered Factory 9002 | -6/Factory | Evolved 2 slots: Utility x1, Weapon x1 9003 | -6/Factory | Identified exit to Factory 9004 | -6/Factory | Identified exit to Lower Caves 9006 | -6/Factory | Loaded intel: 75 trap records 9009 | -6/Factory | Loaded intel: 26 terminal locations 9461 | -6/Factory | Build established: Skirmisher 9826 | -6/Factory | Entered Lower Caves 10383 | -6/Lower Caves | Discovered new exit (range 10) 10410 | -6/Lower Caves | Entered another Lower Caves area 10414 | -6/Lower Caves | Discovered exit to Factory (range 7) 10492 | -6/Lower Caves | Identified exit to Data Miner 10569 | -6/Lower Caves | Attracted the attention of an 0b10 outpost 10630 | -6/Lower Caves | Destroyed 9 combat bots 11006 | -6/Lower Caves | Entered Data Miner 11006 | -6/Data Miner | Discovered new exit (range 6) 11037 | -6/Data Miner | Met Data Miner 11069 | -6/Data Miner | Learned location of Section 7 (-2) 11069 | -6/Data Miner | Acquired the access code to Warlord's prototype stash 11098 | -6/Data Miner | Received God Mode back door access code from Data Miner 11135 | -6/Data Miner | Entered Proximity Caves 11618 | -5/Proximity Caves | Spotted B-75 Beast 11797 | -5/Proximity Caves | Discovered exit to Factory (range 10) 11944 | -5/Proximity Caves | Entered Factory 11944 | -5/Factory | Evolved 2 slots: Power x1, Utility x1 12311 | -5/Factory | Identified exit to Upper Caves 12485 | -5/Factory | Lost 4 parts (3n1u) 12700 | -5/Factory | Lost 3 parts (2p1n) 12759 | -5/Factory | Entered Upper Caves 12880 | -5/Upper Caves | Identified exit to Upper Caves 13024 | -5/Upper Caves | Attracted the attention of an 0b10 checkpoint 13309 | -5/Upper Caves | Entered another Upper Caves area 13601 | -5/Upper Caves | Build established: Tank 13660 | -5/Upper Caves | Encountered a Warlord checkpoint 13696 | -5/Upper Caves | Discovered new exit (range 6) 13790 | -5/Upper Caves | Acquired the password to a Derelict Tinkerer's latest research 13826 | -5/Upper Caves | Entered Warlord 13869 | -5/Warlord | System corruption cleaned by Quarantine Array 13983 | -5/Warlord | Visited the Vortex Lab 13988 | -5/Warlord | Warlord's base attacked by MAIN.C 13990 | -5/Warlord | Found Prototype Piercing Weapon 13993 | -5/Warlord | Found Prototype Energy Gun 13993 | -5/Warlord | Identified Vortex Shotgun 13997 | -5/Warlord | Found Vortex Shotgun 14082 | -5/Warlord | Opened Warlord's prototype stash 14089 | -5/Warlord | Found Prototype Reactor 14089 | -5/Warlord | Identified Vortex Chain Reactor 14093 | -5/Warlord | Found Prototype Processor 14093 | -5/Warlord | Identified Exp. Targeting Computer 14101 | -5/Warlord | Found Prototype Device 14101 | -5/Warlord | Identified Exp. Focal Shield 14108 | -5/Warlord | Found Prototype Hackware 14108 | -5/Warlord | Identified System Mapper 14129 | -5/Warlord | Met Warlord 14338 | -5/Warlord | Warlord forces counterattacked 14411 | -5/Warlord | Lost 3 allies 14417 | -5/Warlord | Lost 3 parts (2n1w) 14427 | -5/Warlord | Spotted Striker 14455 | -5/Warlord | Spotted Executioner 14460 | -5/Warlord | Destroyed Executioner 14471 | -5/Warlord | Spotted Striker 14474 | -5/Warlord | Spotted Executioner 14480 | -5/Warlord | Attacked by Warlord forces 14480 | -5/Warlord | Spotted BP-0O6(g) 14480 | -5/Warlord | Spotted U5-5NO(g) 14488 | -5/Warlord | Released all parts (5) 14489 | -5/Warlord | Core integrity fell below 50% 14489 | -5/Warlord | Spotted B-86 Titan 14491 | -5/Warlord | Discovered new exit (range 14) 14491 | -5/Warlord | Spotted B-75 Beast 14496 | -5/Warlord | Core integrity fell below 20% 14500 | -5/Warlord | Destroyed 10 combat bots 14500 | -5/Warlord | Destroyed by G-50 Soldier with Heavy Laser Last Messages --------------- 14486_ Unknown Leg crushed. 14486_ Hvy. Beamcaster destroyed. 14486_ Mak. Heavy Armor Plating destroyed. 14486_ Rocket Array destroyed. 14487_ The unstable cave ceiling collapses. 14487_ Wheel destroyed. 14487_ Critical hit (Burn: +37). 14487_ Com. Wheel destroyed. 14487_ Vortex Chain Reactor destroyed. 14488_ ANNOUNCEMENT: Detected 1 Behemoth squad, 3 Grunt squads. 14488_ Released System Mapper. 14488_ Released Adv. Terrain Scan Processor. 14488_ Released Hcp. Storage Unit. 14488_ Released Exp. Targeting Computer. 14488_ Released Adv. Heat Sink. 14490_ UT-PBF(g) suffers critical hit (Burn). 14491_ EXIT=FOUND 14491_ Penetrated by Slug. 14492_ The unstable cave ceiling collapses. 14495_ Critical hit (Burn: +37). Map ----- +----------------------------------------------------+ | | | | | | | | | | | | | | | | | | | | | ???????????????????????????????? | | ???????????????????????????????? | | ???????????????????????????????? | | ???????????????????????????????? | | ???????????????????????????????? | | ???????????????????????????????? | | ???????????????????????????????? | | ???????????????????????????????? | | ???????????????????????????????? | | ???????????????????????????????? | | ???????????????????????????????? | | ???????????????????????????????? | | ??????????????????????#####????? | | ???#?????????????????## ###??? | | ?#??????????????????## #### | | ???????????????????## g@< < | | ?#?#???????????????# gBB < | | ?###???????????????# gBB ###? | | ??#??#???? ? ??????# ##??? | | ####??????? ?????## gBB #???? | | ###?####???? ??????#; BB ##???? | | ##?###?#????# ????##; ;#????? | | ####?#??????# ##### % ###???? | | ##?###?#????# ###?? | | #?#######???## ## ;# %##? | | ###??###??????# l # #? | | ?#?#?###??#???### % #? | | ##?####?#?#?#####g ##? | | ####?###?#?## %% #?? | | ############ * [ ##? | | # ## ## # # #? | | ## *!* % ## ##? | | ! = = % !![[ * " ##?? | | %*%!%[ %!*[[! =% ##??? | | ![=[!=% !/%[!!!] # ##??? | | =[%**![=%%%*% %/!% "# #??? | | %**[![* *[%[]= = "# #??? | | [=%!%[=%*= ==% ## # #??? | | %==%[ ![!%= # ### ##?? | | %*![=!%!%% # ### #?? | +----------------------------------------------------+ Best States ------------- Heat Dissipation 62 Energy Generation 55 Energy Capacity 700 Matter Stores 300 Matter Capacity 300 Sight Range 16 Robot Scan Range 20 Terrain Scan Range 20 Terrain Scan Density 210 Jamming Range 14 Armor Coverage 450 Resistance: KI 30 Evasion (%) 50 Targeting Accuracy 12 Recoil Reduction 5 Offensive Hacking 32 Defensive Hacking 10 Item Schematics ----------------- Imp. VTOL Module | -7/Factory | Scanalyzed Thermic Laser | -7/Zion | Archive Gravmag System | -7/Zion | Archive Gauss Cannon | -7/Zion | Archive Hvy. Flak Cannon | -7/Zion | Archive Energy Filter | -7/Zion | Archive Magnetic Acceleration Cannon | -7/Zion | Archive Imp. Dynamic Insulation System | -7/Zion | Archive Remote Shield | -7/Zion | Archive Component Analysis Suite | -7/Zion | Archive Proton Missile Launcher | -7/Zion | Archive Imp. Target Analyzer | -7/Zion | Archive Point Defense System | -7/Zion | Archive Med. Reactive Plating | -7/Zion | Archive Lgt. Angular Momentum Engine | -7/Zion | Archive Arc Projector | -7/Zion | Archive Combat Drone Bay | -6/Data Miner | Free Lgt. Regenerative Plating | -6/Data Miner | Free Exp. Heat Sink | -6/Data Miner | Free Enh. Coil Gun | -6/Data Miner | Free Adv. Surge Thruster | -6/Data Miner | Free Nanoactuators | -6/Data Miner | Free Cld. Nuclear Pulse Thruster | -6/Data Miner | Free Hardcell Cannon | -6/Data Miner | Free Imp. Phase Shifter | -6/Data Miner | Free Robot Schematics ------------------ Y-72 Warden | -7/Zion | Archive A-02 Transporter | -7/Zion | Archive B-48 Gladiator | -7/Zion | Archive L-41 Fighter | -7/Zion | Archive R-10 Processor | -6/Data Miner | Free E-15 Imp | -6/Data Miner | Free Fabricated ------------ Nothing Repaired ---------- Nothing Alien Tech Used ----------------- None Achievements -------------- None Challenges ------------ None Game ------ Seed GrapheneBombardmentStorm Manual? 0 Play Time 01:52:47 Cumulative 104.2 hours Start 2025.07.01 @ 18:12:52 End 2025.07.01 @ 20:20:42 Sessions 1 Manual Loads 0 Difficulty Rogue Special Mode None Game No. 68 Rogue 68 Adventurer 0 Explorer 0 Win Type - Total 9 Types 2/1/3/1/1/0/0/0/0/1 Lore% 61 Gallery% 58 Achievement% 60 Wizard Run 0 Options --------- Layout 0 ASCII 0 Keyboard 1 Movement Vi Keybinds 0 Fullscreen 2 Font 18/SmallcapsGlow Map View 76x50 Zoom Use 0% Tactical HUD 1 Map Filters NONE Filters NONE Steam 1 RUN: 31e8f9e4-a798-4202-a218-bddb300e7d5f